[Event "XIII Mediterranean Championship 2023"]
[Site "Castell-Platja d Aro"]
[Date "2023.11.05"]
[Round "3.14"]
[White "Martin Barcelo, Carles"]
[Black "Menac Comas, Joan Ramon"]
[Result "0-1"]
[ECO "A40"]
[WhiteElo "2242"]
[BlackElo "2044"]
[Annotator "RC"]
[PlyCount "124"]
[EventDate "2023.10.26"]
[EventType "swiss"]
[EventCountry "ESP"]
[SourceTitle "playchess.com"]
[Source "ChessBase"]
[SourceQuality "1"]
[TimeControl "5400+30"]

1. e4 {[%emt 0:00:05]} c5 {[%emt 0:00:05]} 2. Nf3 {[%emt 0:00:20]} g6 {[%emt 0:00:08]} 3. c4 {[%emt 0:00:38]} Bg7 {[%emt 0:00:38]} 4. d4 {[%emt 0:00:15]} Nc6 {[%emt 0:00:32]} 5. dxc5 {[%emt 0:07:26]} Qa5+ {[%emt 0:04:55]} 6. Nc3 {[%emt 0:00:40]} Bxc3+ {[%emt 0:03:14]} 7. bxc3 {[%emt 0:00:09]} Nf6 {[%emt 0:00:28]} 8. Rb1 {[%emt 0:18:20]} Nxe4 {[%emt 0:03:29]} 9. Qc2 {[%emt 0:00:25]} Qxc3+ {[%emt 0:07:16]} 10. Qxc3 {[%emt 0:00:07]} Nxc3 {[%emt 0:00:04]} 11. Rb3 {[%emt 0:00:51]} Na4 {[%emt 0:01:42]} 12. Be3 {[%emt 0:01:03]} b6 {[%emt 0:01:21]} 13. cxb6 {[%emt 0:00:19]} axb6 {[%emt 0:03:30]} 14. Be2 {[%emt 0:00:08]} Ba6 {[%emt 0:12:41]} 15. Bxb6 {[%emt 0:13:18]} O-O {[%emt 0:00:43]} 16. Be3 {[%emt 0:01:23]} Rfc8 {[%emt 0:02:46]} 17. Nd2 {[%emt 0:09:45]} Ne5 {[%emt 0:06:47]} 18. Rb4 {[%emt 0:11:01]} Nc3 {[%emt 0:02:24]} 19. f4 {[%emt 0:03:18]} Nxe2 {[%emt 0:00:28]} 20. fxe5 {[%emt 0:00:33]} Nc1 {[%emt 0:00:38]} 21. O-O {[%emt 0:01:08]} Nd3 {[%emt 0:00:24]} 22. Ra4 {[%emt 0:01:44]} Nxe5 {[%emt 0:01:30]} 23. Rf4 {[%emt 0:01:59]} d6 {[%emt 0:03:30]} 24. Rd4 {[%emt 0:03:15]} Bb7 {[%emt 0:01:22]} 25. Rb4 {[%emt 0:00:05]} Bc6 {[%emt 0:01:53]} 26. Rb2 {[%emt 0:00:05]} Ra3 {[%emt 0:00:51]} 27. Bh6 {[%emt 0:04:32]} f6 {[%emt 0:01:08]} 28. Nb1 {[%emt 0:03:07]} Ra4 {[%emt 0:01:47]} 29. Nc3 {[%emt 0:05:48]} Rxc4 {[%emt 0:00:47]} 30. Rxc4 {[%emt 0:00:07]} Nxc4 {[%emt 0:00:09]} 31. Rb4 {[%emt 0:00:05]} Ne5 {[%emt 0:02:32]} 32. Bd2 {[%emt 0:00:18]} Nd3 {[%emt 0:01:31]} 33. Rb6 {[%emt 0:00:28]} Nc5 {[%emt 0:01:34]} 34. Be3 {[%emt 0:00:43]} Bd7 {[%emt 0:03:15]} 35. Nd5 {[%emt 0:00:11]} Kf7 {[%emt 0:00:48]} 36. Bf4 {[%emt 0:01:09]} Be6 {[%emt 0:00:58]} 37. Nb4 {[%emt 0:02:05]} Ra8 {[%emt 0:01:02]} 38. Rc6 {[%emt 0:00:02]} Ra4 {[%emt 0:01:50]} 39. Bd2 {[%emt 0:03:20]} Ne4 {[%emt 0:00:55]} 40. Be1 {[%emt 0:00:02]} Bxa2 {[%emt 0:00:39]} 41. Rc7 {[%emt 0:01:01]} Nc5 {[%emt 0:05:07]} 42. Nc6 {[%emt 0:01:13]} Re4 {[%emt 0:00:13]} 43. Bg3 {[%emt 0:00:05]} Nd3 {[%emt 0:05:06]} 44. h3 {[%emt 0:01:01]} Bd5 {[%emt 0:03:50]} 45. Na7 {[%emt 0:00:18]} Re2 {[%emt 0:02:54]} 46. Bxd6 {[%emt 0:00:53]} Rxg2+ {[%emt 0:02:30]} 47. Kf1 {[%emt 0:00:01]} Ke6 {[%emt 0:00:23]} 48. Ba3 {[%emt 0:02:15]} Rf2+ {[%emt 0:01:29]} 49. Kg1 {[%emt 0:00:04]} Ra2 {[%emt 0:00:19]} 50. Rxe7+ {[%emt 0:01:16]} Kf5 {[%emt 0:00:05]} 51. Nb5 {[%emt 0:01:33]} Ra1+ {[%emt 0:02:59]} 52. Kh2 {[%emt 0:00:02]} Rh1+ {[%emt 0:00:22]} 53. Kg3 {[%emt 0:00:01]} Rg1+ {[%emt 0:00:34]} 54. Kh4 {[%emt 0:00:07]} Ne5 {[%emt 0:02:22]} 55. Nd4+ {[%emt 0:00:18]} Ke4 {[%emt 0:00:17]} 56. Ne2 {[%emt 0:00:34]} Rg2 {[%emt 0:01:02]} 57. Ng3+ {[%emt 0:02:04]} Kf3 {[%emt 0:00:26]} 58. Nf1 {[%emt 0:01:45]} Bf7 {[%emt 0:00:16]} 59. Rxf7 {[%emt 0:01:13]} Nxf7 {[%emt 0:00:13]} 60. Be7 {[%emt 0:01:13]} Nh6 {[%emt 0:00:19]} 61. Ne3 {[%emt 0:01:00]} Kxe3 {[%emt 0:00:14]} 62. Bc5+ {[%emt 0:00:05]} Kd3 {[%emt 0:00:26]} 0-1

[Event "XIII Mediterranean Championship 2023"]
[Site "Castell-Platja d Aro"]
[Date "2023.11.05"]
[Round "3.15"]
[White "Makka, Evanthia"]
[Black "Vehi Bach, Victor Manuel"]
[Result "1/2-1/2"]
[ECO "E14"]
[WhiteElo "2004"]
[BlackElo "2216"]
[Annotator "ChessBase"]
[PlyCount "58"]
[EventDate "2023.10.26"]
[EventType "swiss"]
[EventCountry "ESP"]
[SourceTitle "playchess.com"]
[Source "ChessBase"]
[SourceQuality "1"]
[TimeControl "5400+30"]

1. d4 {[%emt 0:07:12]} Nf6 {[%emt 0:00:15]} 2. Nf3 {[%emt 0:00:20]} e6 {[%emt 0:00:46]} 3. e3 {[%emt 0:00:19]} b6 {[%emt 0:00:18]} 4. Bd3 {[%emt 0:00:32]} Bb7 {[%emt 0:00:11]} 5. O-O {[%emt 0:00:25]} d5 {[%emt 0:01:13]} 6. c4 {[%emt 0:05:10]} Bd6 {[%emt 0:00:27]} 7. Nbd2 {[%emt 0:16:11]} O-O {[%emt 0:02:34]} 8. Qc2 {[%emt 0:00:15]} c5 {[%emt 0:20:24]} 9. dxc5 {[%emt 0:12:22]} bxc5 {[%emt 0:04:12]} 10. e4 {[%emt 0:00:39]} Nc6 {[%emt 0:08:24]} 11. cxd5 {[%emt 0:05:47]} exd5 {[%emt 0:00:09]} 12. a3 {[%emt 0:03:10]} Nd4 {[%emt 0:08:07]} 13. Nxd4 {[%emt 0:02:01]} cxd4 {[%emt 0:00:07]} 14. exd5 {[%emt 0:08:00]} Bxd5 {[%emt 0:00:10]} 15. Qd1 {[%emt 0:04:23]} Qc7 {[%emt 0:09:06]} 16. h3 {[%emt 0:02:21]} Qb7 {[%emt 0:06:13]} 17. Nf3 {[%emt 0:02:29]} Rac8 {[%emt 0:06:29]} 18. Nh4 {[%emt 0:05:15]} Rfe8 {[%emt 0:12:09]} 19. b4 {[%emt 0:08:02]} Ne4 {[%emt 0:04:57]} 20. Nf5 {[%emt 0:01:49]} Be5 {[%emt 0:03:06]} 21. Qg4 {[%emt 0:01:52]} g6 {[%emt 0:05:43]} 22. f4 {[%emt 0:02:56]} Bb8 {[%emt 0:00:14]} 23. Nh6+ {[%emt 0:01:49]} Kg7 {[%emt 0:02:18]} 24. f5 {[%emt 0:00:24]} Rc3 {[%emt 0:00:49]} 25. fxg6 {[%emt 0:02:48]} hxg6 {[%emt 0:00:15]} 26. Nf5+ {[%emt 0:02:26]} Kg8 {[%emt 0:00:11]} 27. Nh6+ {[%emt 0:01:00]} Kg7 {[%emt 0:00:15]} 28. Nf5+ {[%emt 0:00:10]} Kg8 {[%emt 0:00:21]} 29. Nh6+ {[%emt 0:00:38]} Kg7 {[%emt 0:01:54]} 1/2-1/2

[Event "XIII Mediterranean Championship 2023"]
[Site "Castell-Platja d Aro"]
[Date "2023.11.05"]
[Round "3.16"]
[White "Alonso Gimenez, Mauro"]
[Black "Hernando Rodrigo, Julio Antonio"]
[Result "0-1"]
[ECO "B30"]
[WhiteElo "1978"]
[BlackElo "2202"]
[Annotator "ChessBase"]
[PlyCount "126"]
[EventDate "2023.10.26"]
[EventType "swiss"]
[EventCountry "ESP"]
[SourceTitle "playchess.com"]
[Source "ChessBase"]
[SourceQuality "1"]
[TimeControl "5400+30"]

1. e4 {[%emt 0:00:16]} c5 {[%emt 0:00:11]} 2. Nc3 {[%emt 0:01:08]} e6 {[%emt 0:00:12]} 3. Nf3 {[%emt 0:00:07]} Nc6 {[%emt 0:00:11]} 4. Bb5 {[%emt 0:00:03]} Nge7 {[%emt 0:02:59]} 5. O-O {[%emt 0:00:14]} a6 {[%emt 0:01:17]} 6. Bxc6 {[%emt 0:00:07]} Nxc6 {[%emt 0:00:41]} 7. d4 {[%emt 0:00:07]} cxd4 {[%emt 0:00:14]} 8. Nxd4 {[%emt 0:00:05]} Be7 {[%emt 0:01:28]} 9. Nxc6 {[%emt 0:00:39]} bxc6 {[%emt 0:04:04]} 10. e5 {[%emt 0:02:17]} O-O {[%emt 0:01:12]} 11. Qg4 {[%emt 0:12:02]} f6 {[%emt 0:06:08]} 12. Bf4 {[%emt 0:05:52]} Kh8 {[%emt 0:03:54]} 13. Rad1 {[%emt 0:02:39]} f5 {[%emt 0:17:20]} 14. Qh5 {[%emt 0:05:55]} g6 {[%emt 0:03:23]} 15. Qh6 {[%emt 0:00:44]} g5 {[%emt 0:00:28]} 16. Bc1 {[%emt 0:01:17]} Rg8 {[%emt 0:01:00]} 17. Rd3 {[%emt 0:03:37]} Rg6 {[%emt 0:05:25]} 18. Qh5 {[%emt 0:00:38]} Qg8 {[%emt 0:04:26]} 19. Na4 {[%emt 0:10:38]} Rb8 {[%emt 0:02:38]} 20. Be3 {[%emt 0:01:19]} Rb5 {[%emt 0:22:13]} 21. c4 {[%emt 0:05:32]} Rxe5 {[%emt 0:03:23]} 22. Bd4 {[%emt 0:00:13]} Bf6 {[%emt 0:01:06]} 23. Bxe5 {[%emt 0:00:06]} Bxe5 {[%emt 0:00:06]} 24. Qe2 {[%emt 0:00:14]} Bc7 {[%emt 0:02:04]} 25. c5 {[%emt 0:00:42]} e5 {[%emt 0:02:02]} 26. Nb6 {[%emt 0:00:58]} e4 {[%emt 0:00:36]} 27. Rdd1 {[%emt 0:00:15]} d5 {[%emt 0:00:35]} 28. cxd6 {[%emt 0:12:46]} Bxb6 {[%emt 0:00:02]} 29. d7 {[%emt 0:00:01]} Bb7 {[%emt 0:00:02]} 30. Qd2 {[%emt 0:00:32]} Qd8 {[%emt 0:00:26]} 31. Qc3+ {[%emt 0:00:22]} Rg7 {[%emt 0:04:00]} 32. Qb3 {[%emt 0:00:51]} Rg8 {[%emt 0:02:33]} 33. a4 {[%emt 0:13:03]} a5 {[%emt 0:00:35]} 34. Qc3+ {[%emt 0:00:42]} Rg7 {[%emt 0:00:07]} 35. Qb3 {[%emt 0:02:12]} Rg8 {[%emt 0:03:59]} 36. Qc3+ {[%emt 0:01:01]} Rg7 {[%emt 0:00:02]} 37. b4 {[%emt 0:03:28]} Ba6 {[%emt 0:04:56]} 38. bxa5 {[%emt 0:00:19]} Bc7 {[%emt 0:02:35]} 39. Qxc6 {[%emt 0:00:04]} Bd3 {[%emt 0:00:16]} 40. a6 {[%emt 0:02:43]} Qxd7 {[%emt 0:00:31]} 41. Rc1 {[%emt 0:11:50]} Qxc6 {[%emt 0:00:29]} 42. Rxc6 {[%emt 0:00:03]} Bxf1 {[%emt 0:00:46]} 43. Kxf1 {[%emt 0:01:04]} Bb8 {[%emt 0:00:15]} 44. Ke2 {[%emt 0:01:06]} Ba7 {[%emt 0:00:54]} 45. Rc8+ {[%emt 0:01:01]} Rg8 {[%emt 0:00:02]} 46. Rc7 {[%emt 0:00:15]} Ra8 {[%emt 0:00:20]} 47. h4 {[%emt 0:01:21]} h6 {[%emt 0:01:02]} 48. h5 {[%emt 0:00:12]} f4 {[%emt 0:00:18]} 49. Rc6 {[%emt 0:00:58]} Kg7 {[%emt 0:00:12]} 50. Rc7+ {[%emt 0:00:42]} Kf6 {[%emt 0:00:12]} 51. Rc6+ {[%emt 0:00:08]} Kf5 {[%emt 0:00:42]} 52. Rxh6 {[%emt 0:00:08]} Rb8 {[%emt 0:01:02]} 53. Rh7 {[%emt 0:00:44]} Rb2+ {[%emt 0:00:12]} 54. Kd1 {[%emt 0:01:17]} Bxf2 {[%emt 0:00:09]} 55. a7 {[%emt 0:00:02]} Bxa7 {[%emt 0:00:13]} 56. Rxa7 {[%emt 0:00:03]} Rxg2 {[%emt 0:00:21]} 57. Rf7+ {[%emt 0:01:00]} Ke6 {[%emt 0:00:20]} 58. Rg7 {[%emt 0:01:10]} e3 {[%emt 0:01:06]} 59. h6 {[%emt 0:00:35]} f3 {[%emt 0:00:21]} 60. h7 {[%emt 0:00:27]} Rd2+ {[%emt 0:00:28]} 61. Kc1 {[%emt 0:00:11]} Rh2 {[%emt 0:00:04]} 62. Kd1 {[%emt 0:00:52]} Rh1+ {[%emt 0:00:10]} 63. Kc2 {[%emt 0:00:15]} f2 {[%emt 0:00:08]} 0-1

[Event "XIII Mediterranean Championship 2023"]
[Site "Castell-Platja d Aro"]
[Date "2023.11.05"]
[Round "3.17"]
[White "Domene Mulyukov, Alexander"]
[Black "De Lussac, Estephe"]
[Result "1-0"]
[ECO "B01"]
[WhiteElo "2198"]
[BlackElo "2013"]
[Annotator "ChessBase"]
[PlyCount "55"]
[EventDate "2023.10.26"]
[EventType "swiss"]
[EventCountry "ESP"]
[SourceTitle "playchess.com"]
[Source "ChessBase"]
[SourceQuality "1"]
[TimeControl "5400+30"]

1. e4 {[%emt 0:00:04]} d5 {[%emt 0:00:08]} 2. exd5 {[%emt 0:00:05]} Qxd5 {[%emt 0:00:05]} 3. Nc3 {[%emt 0:00:06]} Qd6 {[%emt 0:00:06]} 4. d4 {[%emt 0:00:06]} Nf6 {[%emt 0:00:32]} 5. Nf3 {[%emt 0:00:17]} a6 {[%emt 0:00:05]} 6. Bd3 {[%emt 0:03:09]} Bg4 {[%emt 0:00:19]} 7. h3 {[%emt 0:00:17]} Bh5 {[%emt 0:00:13]} 8. g4 {[%emt 0:10:10]} Bg6 {[%emt 0:00:06]} 9. Ne2 {[%emt 0:00:15]} Nbd7 {[%emt 0:15:19]} 10. Nf4 {[%emt 0:04:00]} c5 {[%emt 0:11:18]} 11. d5 {[%emt 0:03:22]} Bxd3 {[%emt 0:11:04]} 12. Qxd3 {[%emt 0:03:03]} Ne5 {[%emt 0:00:39]} 13. Nxe5 {[%emt 0:02:29]} Qxe5+ {[%emt 0:00:46]} 14. Qe3 {[%emt 0:00:14]} Qxe3+ {[%emt 0:01:31]} 15. Bxe3 {[%emt 0:00:09]} g5 {[%emt 0:02:54]} 16. Nh5 {[%emt 0:02:04]} Nxd5 {[%emt 0:02:48]} 17. Bxg5 {[%emt 0:03:46]} c4 {[%emt 0:21:46]} 18. O-O-O {[%emt 0:01:42]} O-O-O {[%emt 0:04:21]} 19. Rd4 {[%emt 0:01:26]} Nb6 {[%emt 0:00:26]} 20. Be3 {[%emt 0:02:28]} Re8 {[%emt 0:03:33]} 21. Re4 {[%emt 0:03:47]} Kc7 {[%emt 0:06:08]} 22. Rd1 {[%emt 0:04:07]} c3 {[%emt 0:01:39]} 23. Rd3 {[%emt 0:04:57]} cxb2+ {[%emt 0:01:33]} 24. Kxb2 {[%emt 0:00:09]} Nc8 {[%emt 0:00:21]} 25. Bf4+ {[%emt 0:04:57]} Kc6 {[%emt 0:03:38]} 26. Rc3+ {[%emt 0:09:15]} Kd5 {[%emt 0:01:09]} 27. Re5+ {[%emt 0:03:21]} Kd4 {[%emt 0:00:08]} 28. Kb3 {[%emt 0:34:45]} 1-0

[Event "XIII Mediterranean Championship 2023"]
[Site "Castell-Platja d Aro"]
[Date "2023.11.05"]
[Round "3.18"]
[White "De Lomas Busquets, Alba"]
[Black "Valle Luis, Leo"]
[Result "0-1"]
[ECO "D03"]
[WhiteElo "1873"]
[BlackElo "2216"]
[Annotator "ChessBase"]
[PlyCount "152"]
[EventDate "2023.10.26"]
[EventType "swiss"]
[EventCountry "ESP"]
[SourceTitle "playchess.com"]
[Source "ChessBase"]
[SourceQuality "1"]
[TimeControl "5400+30"]

1. d4 {[%emt 0:00:04]} Nf6 {[%emt 0:00:07]} 2. Nf3 {[%emt 0:00:06]} e6 {[%emt 0:00:05]} 3. Bg5 {[%emt 0:00:10]} d5 {[%emt 0:00:07]} 4. Nbd2 {[%emt 0:00:05]} Be7 {[%emt 0:00:07]} 5. e3 {[%emt 0:00:09]} c5 {[%emt 0:00:32]} 6. c3 {[%emt 0:00:57]} O-O {[%emt 0:01:40]} 7. Bd3 {[%emt 0:00:12]} Nc6 {[%emt 0:01:00]} 8. O-O {[%emt 0:01:41]} b6 {[%emt 0:00:19]} 9. Ne5 {[%emt 0:01:01]} Bb7 {[%emt 0:00:07]} 10. Qf3 {[%emt 0:03:02]} Nd7 {[%emt 0:07:36]} 11. Qh5 {[%emt 0:08:46]} f5 {[%emt 0:01:19]} 12. Bxe7 {[%emt 0:02:03]} Qxe7 {[%emt 0:00:26]} 13. f4 {[%emt 0:00:39]} Rf6 {[%emt 0:06:24]} 14. Qh4 {[%emt 0:03:51]} Ndxe5 {[%emt 0:08:22]} 15. fxe5 {[%emt 0:00:57]} Rf7 {[%emt 0:00:05]} 16. Qxe7 {[%emt 0:00:44]} Rxe7 {[%emt 0:00:22]} 17. Nf3 {[%emt 0:02:27]} a5 {[%emt 0:04:50]} 18. a4 {[%emt 0:02:29]} Ba6 {[%emt 0:06:08]} 19. Bxa6 {[%emt 0:01:15]} Rxa6 {[%emt 0:00:05]} 20. Rfc1 {[%emt 0:06:39]} Rc7 {[%emt 0:09:25]} 21. Ng5 {[%emt 0:04:14]} Nd8 {[%emt 0:01:16]} 22. c4 {[%emt 0:03:47]} h6 {[%emt 0:00:25]} 23. Nf3 {[%emt 0:00:39]} Rd7 {[%emt 0:00:35]} 24. h4 {[%emt 0:08:21]} Raa7 {[%emt 0:00:58]} 25. Ra3 {[%emt 0:01:13]} Nc6 {[%emt 0:13:43]} 26. Rb3 {[%emt 0:04:07]} Nb4 {[%emt 0:00:26]} 27. Nd2 {[%emt 0:06:51]} cxd4 {[%emt 0:05:11]} 28. exd4 {[%emt 0:01:55]} dxc4 {[%emt 0:00:07]} 29. Rxc4 {[%emt 0:00:46]} Rac7 {[%emt 0:04:06]} 30. Rbc3 {[%emt 0:02:18]} Nd5 {[%emt 0:02:35]} 31. Rc1 {[%emt 0:04:48]} Kf7 {[%emt 0:04:52]} 32. Kf2 {[%emt 0:01:41]} Ke7 {[%emt 0:00:09]} 33. g3 {[%emt 0:02:06]} Rb7 {[%emt 0:02:40]} 34. Rc8 {[%emt 0:03:37]} Rbc7 {[%emt 0:06:45]} 35. R8xc7 {[%emt 0:03:35]} Rxc7 {[%emt 0:00:36]} 36. Nc4 {[%emt 0:01:37]} g5 {[%emt 0:01:48]} 37. hxg5 {[%emt 0:00:34]} hxg5 {[%emt 0:00:03]} 38. b3 {[%emt 0:00:17]} Kf7 {[%emt 0:01:25]} 39. Rh1 {[%emt 0:00:47]} Kg7 {[%emt 0:05:28]} 40. Rh5 {[%emt 0:00:40]} g4 {[%emt 0:03:11]} 41. Rg5+ {[%emt 0:00:42]} Kh7 {[%emt 0:00:35]} 42. Rh5+ {[%emt 0:00:07]} Kg8 {[%emt 0:00:38]} 43. Rh6 {[%emt 0:00:53]} Re7 {[%emt 0:00:06]} 44. Rg6+ {[%emt 0:04:41]} Kh7 {[%emt 0:00:58]} 45. Rg5 {[%emt 0:00:03]} Re8 {[%emt 0:00:08]} 46. Rh5+ {[%emt 0:00:15]} Kg6 {[%emt 0:00:09]} 47. Rh4 {[%emt 0:00:57]} Rb8 {[%emt 0:00:17]} 48. Nd6 {[%emt 0:01:22]} Rf8 {[%emt 0:02:02]} 49. Nc4 {[%emt 0:02:20]} Nc7 {[%emt 0:03:01]} 50. Nd6 {[%emt 0:01:55]} b5 {[%emt 0:00:32]} 51. axb5 {[%emt 0:02:27]} Rb8 {[%emt 0:00:05]} 52. Rh1 {[%emt 0:00:41]} Nxb5 {[%emt 0:00:19]} 53. Nxb5 {[%emt 0:04:42]} Rxb5 {[%emt 0:00:07]} 54. Rc1 {[%emt 0:02:33]} Rxb3 {[%emt 0:01:19]} 55. Rc6 {[%emt 0:00:04]} Rf3+ {[%emt 0:00:11]} 56. Kg2 {[%emt 0:00:15]} Kf7 {[%emt 0:00:05]} 57. Rc7+ {[%emt 0:01:02]} Ke8 {[%emt 0:00:17]} 58. Rc6 {[%emt 0:00:09]} Ke7 {[%emt 0:00:43]} 59. Rc7+ {[%emt 0:00:05]} Kd8 {[%emt 0:00:32]} 60. Rc6 {[%emt 0:00:05]} Rd3 {[%emt 0:00:26]} 61. Rxe6 {[%emt 0:00:45]} Rxd4 {[%emt 0:03:05]} 62. Rf6 {[%emt 0:00:12]} Rd2+ {[%emt 0:00:00]} 63. Kg1 {[%emt 0:00:17]} a4 {[%emt 0:00:00]} 64. Ra6 {[%emt 0:00:57]} Rd4 {[%emt 0:00:18]} 65. Kf2 {[%emt 0:00:15]} Re4 {[%emt 0:00:07]} 66. e6 {[%emt 0:00:17]} Ke7 {[%emt 0:00:18]} 67. Kf1 {[%emt 0:00:50]} Re3 {[%emt 0:00:26]} 68. Kf2 {[%emt 0:01:06]} Rf3+ {[%emt 0:00:09]} 69. Kg2 {[%emt 0:00:04]} a3 {[%emt 0:00:01]} 70. Kh2 {[%emt 0:00:53]} Rb3 {[%emt 0:00:02]} 71. Ra7+ {[%emt 0:02:01]} Kxe6 {[%emt 0:00:04]} 72. Ra6+ {[%emt 0:00:04]} Ke5 {[%emt 0:00:05]} 73. Ra5+ {[%emt 0:00:06]} Kf6 {[%emt 0:00:01]} 74. Ra6+ {[%emt 0:00:23]} Kg5 {[%emt 0:00:03]} 75. Kg2 {[%emt 0:00:59]} Rb2+ {[%emt 0:00:10]} 76. Kg1 {[%emt 0:00:12]} a2 {[%emt 0:00:07]} 0-1

[Event "XIII Mediterranean Championship 2023"]
[Site "Castell-Platja d Aro"]
[Date "2023.11.05"]
[Round "3.19"]
[White "Banos, Oscar"]
[Black "Clot Chico, Arnau"]
[Result "1/2-1/2"]
[ECO "A30"]
[WhiteElo "2188"]
[BlackElo "2008"]
[Annotator "ChessBase"]
[PlyCount "127"]
[EventDate "2023.10.26"]
[EventType "swiss"]
[EventCountry "ESP"]
[SourceTitle "playchess.com"]
[Source "ChessBase"]
[SourceQuality "1"]
[TimeControl "5400+30"]

1. Nf3 {[%emt 0:00:02]} Nf6 {[%emt 0:02:16]} 2. c4 {[%emt 0:00:24]} b6 {[%emt 0:00:42]} 3. g3 {[%emt 0:04:17]} Bb7 {[%emt 0:01:02]} 4. Bg2 {[%emt 0:00:07]} e6 {[%emt 0:00:27]} 5. O-O {[%emt 0:00:49]} a6 {[%emt 0:03:30]} 6. b3 {[%emt 0:03:44]} Be7 {[%emt 0:00:39]} 7. Bb2 {[%emt 0:01:08]} c5 {[%emt 0:00:29]} 8. e3 {[%emt 0:07:08]} O-O {[%emt 0:01:32]} 9. d4 {[%emt 0:06:11]} cxd4 {[%emt 0:00:08]} 10. exd4 {[%emt 0:03:49]} d5 {[%emt 0:00:20]} 11. Nbd2 {[%emt 0:08:17]} dxc4 {[%emt 0:04:19]} 12. bxc4 {[%emt 0:00:15]} Nbd7 {[%emt 0:00:46]} 13. Rc1 {[%emt 0:05:29]} Rc8 {[%emt 0:00:52]} 14. Qb3 {[%emt 0:07:17]} Re8 {[%emt 0:07:02]} 15. Rfd1 {[%emt 0:00:52]} Qc7 {[%emt 0:04:53]} 16. Nf1 {[%emt 0:11:26]} Bd8 {[%emt 0:07:51]} 17. Ne3 {[%emt 0:00:59]} Qb8 {[%emt 0:00:38]} 18. Qa4 {[%emt 0:05:44]} Qa8 {[%emt 0:04:47]} 19. Ne5 {[%emt 0:02:48]} Bxg2 {[%emt 0:03:56]} 20. Nxg2 {[%emt 0:00:09]} Qb7 {[%emt 0:01:09]} 21. Nxd7 {[%emt 0:06:44]} Nxd7 {[%emt 0:01:36]} 22. Qc2 {[%emt 0:01:36]} Bg5 {[%emt 0:03:45]} 23. f4 {[%emt 0:02:06]} Bf6 {[%emt 0:01:04]} 24. Qe2 {[%emt 0:03:18]} Red8 {[%emt 0:02:01]} 25. Ne1 {[%emt 0:00:16]} Qc6 {[%emt 0:08:08]} 26. Rd3 {[%emt 0:00:03]} Nb8 {[%emt 0:07:51]} 27. Nf3 {[%emt 0:01:35]} Qb7 {[%emt 0:04:28]} 28. Re3 {[%emt 0:07:04]} h6 {[%emt 0:01:16]} 29. g4 {[%emt 0:02:26]} g6 {[%emt 0:01:36]} 30. g5 {[%emt 0:00:41]} hxg5 {[%emt 0:01:04]} 31. fxg5 {[%emt 0:00:44]} Bg7 {[%emt 0:00:08]} 32. h4 {[%emt 0:03:47]} Nc6 {[%emt 0:00:33]} 33. Re4 {[%emt 0:02:34]} Na5 {[%emt 0:02:40]} 34. Nd2 {[%emt 0:00:44]} b5 {[%emt 0:01:07]} 35. c5 {[%emt 0:00:28]} e5 {[%emt 0:00:33]} 36. Bc3 {[%emt 0:01:21]} b4 {[%emt 0:04:57]} 37. Rb1 {[%emt 0:01:18]} Nc6 {[%emt 0:02:19]} 38. dxe5 {[%emt 0:00:58]} Qe7 {[%emt 0:01:27]} 39. Ba1 {[%emt 0:00:48]} Qxc5+ {[%emt 0:00:25]} 40. Kh1 {[%emt 0:00:07]} Qd5 {[%emt 0:07:01]} 41. Nf3 {[%emt 0:00:21]} Qe6 {[%emt 0:00:33]} 42. Kg2 {[%emt 0:00:29]} a5 {[%emt 0:00:46]} 43. Rc1 {[%emt 0:00:15]} Ne7 {[%emt 0:01:05]} 44. Rec4 {[%emt 0:00:53]} Rxc4 {[%emt 0:00:21]} 45. Qxc4 {[%emt 0:00:08]} Nd5 {[%emt 0:00:12]} 46. Qe4 {[%emt 0:00:21]} Ne7 {[%emt 0:02:24]} 47. Rc2 {[%emt 0:00:20]} Nf5 {[%emt 0:01:14]} 48. Bd4 {[%emt 0:00:35]} b3 {[%emt 0:00:36]} 49. axb3 {[%emt 0:00:10]} Qxb3 {[%emt 0:00:13]} 50. Bf2 {[%emt 0:00:08]} a4 {[%emt 0:02:42]} 51. Rc4 {[%emt 0:00:02]} a3 {[%emt 0:01:18]} 52. e6 {[%emt 0:00:14]} a2 {[%emt 0:01:29]} 53. exf7+ {[%emt 0:00:11]} Kh7 {[%emt 0:01:25]} 54. h5 {[%emt 0:02:15]} Qxc4 {[%emt 0:01:13]} 55. hxg6+ {[%emt 0:00:24]} Kxg6 {[%emt 0:00:18]} 56. Nh4+ {[%emt 0:00:23]} Kh5 {[%emt 0:00:43]} 57. Qxc4 {[%emt 0:00:52]} a1=Q {[%emt 0:00:17]} 58. Nxf5 {[%emt 0:01:10]} Qa8+ {[%emt 0:00:01]} 59. Kh2 {[%emt 0:00:35]} Be5+ {[%emt 0:00:13]} 60. Ng3+ {[%emt 0:00:24]} Bxg3+ {[%emt 0:00:02]} 61. Kxg3 {[%emt 0:00:26]} Qb8+ {[%emt 0:01:18]} 62. Kg2 {[%emt 0:00:29]} Qb7+ {[%emt 0:00:06]} 63. Kg3 {[%emt 0:00:17]} Qb8+ {[%emt 0:00:12]} 64. Kg2 {[%emt 0:00:20]} 1/2-1/2

[Event "XIII Mediterranean Championship 2023"]
[Site "Castell-Platja d Aro"]
[Date "2023.11.05"]
[Round "3.21"]
[White "Zvereva, Marija"]
[Black "Makka, Ioulia"]
[Result "0-1"]
[ECO "C48"]
[WhiteElo "2144"]
[BlackElo "1900"]
[Annotator "NA"]
[PlyCount "34"]
[EventDate "2023.10.26"]
[EventType "swiss"]
[EventCountry "ESP"]
[SourceTitle "playchess.com"]
[Source "ChessBase"]
[SourceQuality "1"]
[TimeControl "5400+30"]

1. e4 {[%emt 1:31:00]} e5 {[%emt 1:31:00]} 2. Nf3 {[%emt 0:00:30]} Nc6 {[%emt 0:00:30]} 3. Nc3 {[%emt 0:00:30]} Nf6 {[%emt 0:00:30]} 4. Bb5 {[%emt 0:00:30]} Bd6 {[%emt 0:00:30]} 5. d4 {[%emt 0:00:30]} Nxd4 {[%emt 0:00:30]} 6. Nxd4 {[%emt 0:00:30]} exd4 {[%emt 0:00:30]} 7. Qxd4 {[%emt 0:00:30]} Qe7 {[%emt 0:00:30]} 8. f3 {[%emt 0:00:30]} c6 {[%emt 0:00:30]} 9. Be2 {[%emt 0:00:30]} O-O {[%emt 0:00:30]} 10. Be3 {[%emt 0:00:30]} Be5 {[%emt 0:00:30]} 11. Qd3 {[%emt 0:00:30]} Re8 {[%emt 0:00:30]} 12. Kf2 {[%emt 0:00:30]} d5 {[%emt 0:00:30]} 13. Rae1 {[%emt 0:00:30]} d4 {[%emt 0:00:30]} 14. Bg5 {[%emt 0:00:30]} dxc3 {[%emt 0:00:30]} 15. f4 {[%emt 0:00:30]} Qc5+ {[%emt 0:00:30]} 16. Kf1 {[%emt 0:00:30]} Bd4 {[%emt 0:00:30]} 17. Bxf6 {[%emt 0:00:30]} gxf6 {[%emt 0:00:30]} 0-1